bitfinex/quotes_BTCUSD_20241123
["timestamp","ask_amount","ask_price","bid_price","bid_amount"]
[1732321088397,0.0029634,98589.0,98565.0,0.00250838]
[1732321088641,0.0029634,98589.0,98566.0,0.1279]
[1732321089087,0.09756289,98597.0,98567.0,0.15]
[1732321089304,0.10201427,98596.0,98568.0,0.0795]
[1732321089519,0.10201427,98596.0,98568.0,0.08200854]
[1732321089716,0.0464,98597.0,98571.0,0.0795]
[1732321089965,0.50988196,98598.0,98571.0,0.0795]
[1732321090203,0.61189623,98598.0,98573.0,0.0795]
[1732321090635,0.02024,98599.0,98576.0,0.15]
[1732321090852,0.02024,98599.0,98578.0,0.0795]
[1732321091068,0.02024,98599.0,98579.0,0.0795]
[1732321091548,0.02024,98599.0,98579.0,0.08199505]
[1732321092207,0.07768062,98610.0,98579.0,0.08199505]
[1732321092423,0.10201427,98608.0,98579.0,0.08199505]
[1732321092652,0.10201427,98608.0,98581.0,0.0795]
[1732321092874,0.10201427,98608.0,98583.0,0.1984]
[1732321093095,0.10201427,98608.0,98586.0,0.15]
[1732321093306,0.10201427,98608.0,98587.0,0.0795]
[1732321093527,0.10201427,98608.0,98587.0,0.08198506]
[1732321093749,0.07768062,98610.0,98587.0,0.08198506]
[1732321094177,0.0008601,98599.0,98587.0,0.08198506]
[1732321094391,0.0008601,98599.0,98589.0,0.0805]
[1732321094606,0.0008601,98599.0,98589.0,0.0815142]
[1732321094827,0.0008601,98599.0,98590.0,0.04768496]
[1732321095052,0.0008601,98599.0,98591.0,0.25302847]
[1732321095312,0.0008601,98599.0,98592.0,0.0805]
[1732321095540,0.0008601,98599.0,98593.0,0.10201427]
[1732321095777,0.0008601,98599.0,98594.0,0.0805]
[1732321096006,0.0008601,98599.0,98596.0,0.0805]
[1732321096216,0.0008601,98599.0,98596.0,0.18251427]
[1732321096455,0.0008601,98599.0,98597.0,0.00247573]
[1732321097557,0.46799999,98637.0,98597.0,0.00247573]
[1732321097782,0.07768062,98620.0,98598.0,0.004049]
[1732321097992,0.07768062,98610.0,98598.0,0.004049]
[1732321098434,0.07768062,98610.0,98599.0,0.00242596]
[1732321104248,0.07436123,98620.0,98599.0,0.00242596]
[1732321104488,0.07768062,98610.0,98599.0,0.00242596]
[1732321105143,0.07768062,98610.0,98600.0,0.00242595]
[1732321105573,0.09869488,98619.0,98600.0,0.04049]
[1732321108350,0.07854012,98620.0,98601.0,0.1257]
[1732321108790,0.07768062,98611.0,98601.0,0.0805]
[1732321109010,0.07768062,98611.0,98581.0,0.06576184]
[1732321109243,0.07768062,98611.0,98602.0,0.040488]
[1732321109455,0.12808061,98619.0,98602.0,0.040488]
[1732321109667,0.07768062,98612.0,98602.0,0.040488]
[1732321110585,0.12808061,98619.0,98602.0,0.040488]
[1732321110800,0.07768062,98612.0,98582.0,0.10201427]
[1732321111017,0.04002827,98615.0,98582.0,0.10201427]
[1732321111229,0.04002827,98615.0,98603.0,0.040488]
[1732321112108,0.04002827,98615.0,98604.0,0.00221568]
[1732321113244,0.12808061,98619.0,98604.0,0.00221568]
[1732321113461,0.11856839,98620.0,98604.0,0.00221568]
[1732321113680,0.11856839,98620.0,98604.0,0.04791568]
[1732321113918,0.115249,98620.0,98604.0,0.04791568]
[1732321115978,0.115249,98620.0,98604.0,0.00221568]
[1732321116196,0.03756838,98620.0,98605.0,0.0829]
[1732321116635,0.115249,98620.0,98606.0,0.00221399]
[1732321117498,0.0488,98619.0,98606.0,0.00221399]
[1732321117969,0.08304899,98620.0,98606.0,0.00221399]
[1732321118192,0.10201427,98618.0,98583.0,0.10201427]
[1732321118411,0.10201427,98618.0,98600.0,0.040487]
[1732321118643,0.10201427,98618.0,98583.0,0.10201427]
[1732321118837,0.10201427,98618.0,98584.0,0.190487]
[1732321119100,0.07768062,98610.0,98586.0,0.15]
[1732321119313,0.07768062,98610.0,98586.0,0.10201427]
[1732321119996,0.07768062,98610.0,98587.0,0.15]
[1732321120225,0.12648062,98610.0,98587.0,0.15]
[1732321120447,0.22849489,98610.0,98584.0,0.040487]
[1732321120702,0.10201427,98610.0,98585.0,0.00101418]
[1732321120920,0.17969489,98610.0,98584.0,0.040487]
[1732321121164,0.17969489,98610.0,98585.0,0.0829]
[1732321121385,0.07768062,98610.0,98585.0,0.18491427]
[1732321122565,0.17969489,98610.0,98585.0,0.2329]
[1732321124956,0.10201427,98609.0,98585.0,0.2329]
[1732321125202,0.07768062,98600.0,98585.0,0.2329]
[1732321125631,0.0488,98608.0,98585.0,0.2329]
[1732321125937,0.06981426,98609.0,98585.0,0.2329]
[1732321126162,0.06981426,98609.0,98586.0,0.00101421]
[1732321127324,0.06981426,98609.0,98587.0,0.0457]
[1732321127554,0.06981426,98609.0,98588.0,0.00101421]
[1732321128487,0.00622837,98620.0,98590.0,0.0457]
[1732321128698,0.00622837,98620.0,98594.0,0.0829]
[1732321128699,0.10201427,98619.0,98594.0,0.0829]
[1732321128908,0.10201427,98619.0,98596.0,0.0457]
[1732321129114,0.00536837,98617.0,98596.0,0.0457]
[1732321129342,0.10201427,98616.0,98596.0,0.0457]
[1732321129845,0.00536837,98617.0,98596.0,0.0457]
[1732321130904,0.08336837,98617.0,98596.0,0.0457]
[1732321131143,0.08422837,98617.0,98596.0,0.0457]
[1732321131359,0.07768062,98610.0,98596.0,0.0457]
[1732321131585,0.08422837,98617.0,98596.0,0.0457]
[1732321132738,0.07768062,98610.0,98596.0,0.0457]
[1732321132939,0.07768062,98610.0,98597.0,0.0829]
[1732321133151,0.07768062,98610.0,98597.0,0.2329]
[1732321133798,0.03820497,98616.0,98597.0,0.2329]
[1732321134025,0.00622837,98617.0,98597.0,0.2329]
[1732321134237,0.07768062,98610.0,98597.0,0.2329]
[1732321134934,0.00622837,98617.0,98597.0,0.2329]
[1732321137817,0.00376898,98620.0,98597.0,0.2329]
[1732321138025,0.10201427,98619.0,98597.0,0.2329]
[1732321138686,0.07768062,98610.0,98597.0,0.2329]
[1732321139633,0.07768062,98610.0,98596.0,0.0457]
[1732321139850,0.0811,98609.0,98591.0,0.15]
[1732321142314,0.07768062,98610.0,98591.0,0.15]
[1732321143676,0.0008596,98609.0,98591.0,0.15]
[1732321147858,0.07768062,98610.0,98591.0,0.15]
[1732321148315,0.07768062,98610.0,98584.0,0.02544067]
[1732321148543,0.07768062,98610.0,98585.0,0.00101421]
[1732321148772,0.07740418,98610.0,98580.0,0.04049]
[1732321149037,0.07740418,98610.0,98581.0,0.10302848]
[1732321149256,0.07740418,98610.0,98581.0,0.10201427]
[1732321149502,0.07740418,98610.0,98582.0,0.00101421]
[1732321149720,0.07740418,98610.0,98583.0,0.10201427]
[1732321149931,0.07740418,98610.0,98584.0,0.00101421]
[1732321150781,0.07740418,98610.0,98585.0,0.10201427]
[1732321151394,0.07740418,98610.0,98586.0,0.1299]
[1732321151642,0.00130919,98620.0,98581.0,0.00305968]
[1732321151854,0.00130919,98620.0,98583.0,0.0804]
[1732321151855,0.14941427,98619.0,98583.0,0.0804]
[1732321152067,0.14941427,98619.0,98584.0,0.0804]
[1732321152281,0.0474,98619.0,98591.0,0.0804]
[1732321152511,0.0474,98619.0,98592.0,0.00101409]
[1732321152720,0.0474,98619.0,98593.0,0.00101409]
[1732321152934,0.0474,98619.0,98592.0,0.00101409]
[1732321154034,0.0461,98609.0,98591.0,0.0804]
[1732321154327,0.0461,98609.0,98591.0,0.12188]
[1732321154570,0.0461,98609.0,98592.0,0.15]
[1732321154982,0.0461,98609.0,98591.0,0.04148]
[1732321154983,0.082,98608.0,98591.0,0.04148]
[1732321155410,0.082,98608.0,98585.0,0.11775718]
[1732321155636,0.0461,98600.0,98586.0,0.15]
[1732321155855,0.04709999,98608.0,98591.0,0.0017192]
[1732321156708,0.04209999,98608.0,98591.0,0.0017192]
[1732321157418,0.07768062,98601.0,98591.0,0.0017192]
[1732321159927,0.04278061,98603.0,98591.0,0.0017192]
[1732321160139,0.07768062,98601.0,98591.0,0.0017192]
[1732321160775,0.07768062,98601.0,98585.0,0.07801425]
[1732321160776,0.07768062,98601.0,98585.0,0.06111139]
[1732321161668,0.04278061,98603.0,98585.0,0.06111139]
[1732321161878,0.04278061,98603.0,98582.0,0.00101425]
[1732321161879,0.0002795,98605.0,98587.0,0.0487]
[1732321162084,0.0002795,98605.0,98588.0,0.10302836]
[1732321163823,0.082,98622.0,98589.0,0.0831]
[1732321164061,0.07768062,98620.0,98592.0,0.0464]
[1732321164296,0.17969489,98620.0,98593.0,0.00101409]
[1732321166504,0.07768062,98610.0,98592.0,0.0464]
[1732321166721,0.15438062,98610.0,98592.0,0.0464]
[1732321166943,0.07768062,98610.0,98592.0,0.0464]
[1732321167800,0.07768062,98610.0,98593.0,0.00101415]
[1732321168031,0.07338061,98615.0,98593.0,0.00101415]
[1732321168255,0.17539488,98615.0,98593.0,0.00101415]
[1732321171980,0.09439487,98615.0,98593.0,0.00101415]
[1732321172432,0.09439487,98615.0,98594.0,0.0831]
[1732321172667,0.09439487,98615.0,98594.0,0.08411415]
[1732321173598,0.09439487,98615.0,98596.0,0.15]
[1732321173813,0.09439487,98615.0,98597.0,0.0761]
[1732321175195,0.07854022,98620.0,98597.0,0.0761]
[1732321175954,0.07768062,98620.0,98598.0,0.00101409]
[1732321180731,0.07854022,98620.0,98598.0,0.00101409]
[1732321183908,0.07768062,98620.0,98596.0,0.0811]
[1732321184129,0.07768062,98620.0,98597.0,0.00101409]
[1732321186957,0.07566892,98625.0,98596.0,0.0811]
[1732321187221,0.12225427,98624.0,98597.0,0.0811]
[1732321187448,0.02024,98624.0,98601.0,0.1277]
[1732321187682,0.0469,98629.0,98602.0,0.00101402]
[1732321187929,0.0454,98636.0,98611.0,0.1277]
[1732321188156,0.0454,98636.0,98612.0,0.00101394]
[1732321188157,0.14741427,98636.0,98612.0,0.00101394]
[1732321188397,0.14741427,98636.0,98611.0,0.1277]
[1732321188398,0.0454,98636.0,98613.0,0.00101394]
[1732321188630,0.0008601,98638.0,98614.0,0.0811]
[1732321189322,0.0008601,98638.0,98614.0,0.2311]
[1732321189804,0.04368029,98643.0,98615.0,0.0466]
[1732321190024,0.10201427,98643.0,98616.0,0.0811]
[1732321190270,0.10201427,98643.0,98617.0,0.0466]
[1732321190710,0.10201427,98643.0,98617.0,0.1966]
[1732321191662,0.06,98645.0,98620.0,0.07768062]
[1732321191885,0.10201427,98644.0,98621.0,0.0466]
[1732321192134,0.0008596,98643.0,98621.0,0.0466]
[1732321192575,0.0008596,98643.0,98622.0,0.00101386]
[1732321193238,0.0008596,98643.0,98623.0,0.0811]
[1732321193929,0.06,98645.0,98623.0,0.0811]
[1732321194845,0.06,98645.0,98626.0,0.1296]
[1732321195064,0.06,98645.0,98627.0,0.08341378]
[1732321195284,0.06,98645.0,98630.0,0.07768062]
[1732321195509,0.06,98645.0,98631.0,0.23262802]
[1732321196435,0.06,98645.0,98631.0,0.23161427]
[1732321198043,0.19079011,98660.0,98631.0,0.23161427]
[1732321200150,0.19079011,98660.0,98632.0,0.0472]
[1732321201057,0.11310949,98660.0,98635.0,0.0472]
[1732321201278,0.0804,98660.0,98635.0,0.04821372]
[1732321201496,0.04089708,98661.0,98636.0,0.0472]
[1732321201715,0.04089708,98661.0,98641.0,0.1296]
[1732321201944,0.0008598,98673.0,98642.0,0.15]
[1732321202397,0.0008598,98673.0,98643.0,0.0824]
[1732321202626,0.0461,98675.0,98644.0,0.0472]
[1732321202880,0.10201427,98673.0,98646.0,0.0472]
[1732321203094,0.10201427,98673.0,98647.0,0.0824]
[1732321203565,0.10201427,98673.0,98647.0,0.08341361]
[1732321205450,0.07768062,98670.0,98647.0,0.08341361]
[1732321206830,0.07768062,98660.0,98647.0,0.0824]
[1732321207066,0.07768062,98660.0,98646.0,0.0472]
[1732321207067,0.10201427,98659.0,98637.0,0.0824]
[1732321207569,0.0022839,98674.0,98650.0,0.1296]
[1732321207825,0.0022839,98674.0,98651.0,0.0824]
[1732321208462,0.07768062,98670.0,98651.0,0.0824]
[1732321210401,0.07768062,98670.0,98651.0,0.2324]
[1732321213996,0.0088824,98681.0,98651.0,0.2324]
[1732321214210,0.07768062,98670.0,98651.0,0.2324]
[1732321214429,0.04156248,98681.0,98652.0,0.10201427]
[1732321214640,0.0046757,98685.0,98657.0,0.15]
[1732321214641,0.07768062,98680.0,98657.0,0.15]
[1732321215187,0.0008591,98674.0,98657.0,0.15]
[1732321217778,0.0008591,98674.0,98657.0,0.1510135]
[1732321218018,0.07768062,98680.0,98658.0,0.0806]
[1732321218267,0.07768062,98680.0,98659.0,0.0465]
[1732321219128,0.07768062,98680.0,98659.0,0.1965]
[1732321221846,0.0046757,98685.0,98662.0,0.0806]
[1732321222085,0.07768062,98690.0,98664.0,0.0806]
[1732321222320,0.10201427,98689.0,98666.0,0.0806]
[1732321222806,0.10201427,98689.0,98666.0,0.2306]
[1732321223266,0.10201427,98689.0,98667.0,0.0465]
[1732321225593,0.10201427,98689.0,98667.0,0.1965]
[1732321226029,0.07768062,98690.0,98667.0,0.1965]
[1732321227364,0.07768062,98690.0,98657.0,0.001718]
[1732321227598,0.000859,98689.0,98670.0,0.1271]
[1732321227842,0.000859,98689.0,98671.0,0.2771]
[1732321229911,0.000859,98689.0,98672.0,0.0023231]
[1732321230133,0.07768062,98690.0,98672.0,0.0023231]
[1732321230626,0.07768062,98690.0,98673.0,0.1271]
[1732321230854,0.00082181,98696.0,98673.0,0.10302764]
[1732321231073,0.00082181,98696.0,98675.0,0.0465]
[1732321231297,0.00082181,98696.0,98677.0,0.2771]
[1732321231539,0.00082181,98696.0,98679.0,0.0806]
[1732321231786,0.00082181,98696.0,98680.0,0.14952754]
[1732321231999,0.00082181,98696.0,98680.0,0.10528261]
[1732321232220,0.00082181,98696.0,98682.0,0.15]
[1732321232433,0.00082181,98696.0,98683.0,0.1271]
[1732321232648,0.00082181,98696.0,98683.0,0.12935494]
[1732321233837,0.00082181,98696.0,98684.0,0.15]
[1732321234056,0.07768062,98700.0,98685.0,0.00225493]
[1732321238174,0.07768062,98700.0,98683.0,0.02116415]
[1732321238412,0.15818062,98700.0,98683.0,0.02116415]
[1732321240679,0.07768062,98693.0,98654.0,0.04104935]
[1732321240909,0.10201427,98699.0,98662.0,0.15]
[1732321240910,0.07768062,98680.0,98662.0,0.15]
[1732321241203,0.07768062,98690.0,98664.0,0.15]
[1732321241424,0.15904082,98700.0,98663.0,0.10201427]
[1732321241425,0.07768062,98680.0,98666.0,0.15]
[1732321241656,0.0805,98686.0,98666.0,0.15]
[1732321242133,0.0474,98688.0,98666.0,0.15]
[1732321242134,0.04689999,98688.0,98666.0,0.15]
[1732321242368,0.07768062,98680.0,98666.0,0.15]
[1732321242830,0.15536124,98680.0,98666.0,0.15]
[1732321243055,0.07768062,98680.0,98666.0,0.15]
[1732321244905,0.07768062,98680.0,98665.0,0.0776]
[1732321245355,0.07768062,98675.0,98665.0,0.0776]
[1732321245589,0.07768062,98680.0,98665.0,0.0776]
[1732321249748,0.07768062,98675.0,98665.0,0.0776]
[1732321249982,0.12739999,98688.0,98665.0,0.0776]
[1732321250198,0.07768062,98690.0,98666.0,0.0493]
[1732321250439,0.17969489,98690.0,98667.0,0.0776]
[1732321250686,0.1763755,98690.0,98667.0,0.0776]
[1732321254111,0.09537549,98690.0,98667.0,0.0776]
[1732321254334,0.06,98674.0,98667.0,0.0776]
[1732321256873,0.06,98674.0,98665.0,0.0017202]
[1732321258619,0.05668061,98675.0,98665.0,0.0017202]
[1732321259490,0.10201427,98674.0,98665.0,0.0017202]
[1732321261946,0.10157212,98674.0,98665.0,0.0017202]
[1732321262150,0.10122012,98674.0,98665.0,0.0017202]
[1732321262377,0.05668061,98675.0,98665.0,0.0017202]
[1732321264219,0.05668061,98675.0,98620.0,0.07768062]
[1732321264220,0.07768062,98660.0,98620.0,0.07768062]
[1732321264457,0.00101371,98659.0,98625.0,0.10201427]
[1732321265541,0.00101371,98659.0,98626.0,0.15]
[1732321265780,0.00101371,98659.0,98627.0,0.10201427]
[1732321265981,0.00151711,98659.0,98627.0,0.10201427]
[1732321266186,0.07768062,98660.0,98628.0,0.048]
[1732321266440,0.07768062,98660.0,98630.0,0.048]
[1732321266654,0.07768062,98660.0,98631.0,0.10201427]
[1732321266913,0.07768062,98660.0,98632.0,0.048]
[1732321267147,0.07768062,98660.0,98635.0,0.048]
[1732321267377,0.07768062,98660.0,98636.0,0.10201427]
[1732321267588,0.07768062,98650.0,98636.0,0.10201427]
[1732321268859,0.07768062,98650.0,98635.0,0.048]
[1732321269071,0.07768062,98650.0,98634.0,0.0756]
[1732321269275,0.07768062,98645.0,98634.0,0.0756]
[1732321269523,0.12508062,98650.0,98634.0,0.0756]
[1732321270159,0.07768062,98650.0,98634.0,0.0756]
[1732321273300,0.02076893,98653.0,98634.0,0.0756]
[1732321273970,0.07768062,98650.0,98634.0,0.0756]
[1732321274651,0.07768062,98650.0,98610.0,0.07768062]
[1732321274652,0.07768062,98650.0,98610.0,0.03102855]
[1732321274873,0.07768062,98640.0,98611.0,0.10201427]
[1732321276724,0.12728062,98640.0,98611.0,0.10201427]
[1732321276952,0.0774,98639.0,98612.0,0.00101387]
[1732321277193,0.0774,98639.0,98613.0,0.10201427]
[1732321277451,0.07768062,98630.0,98606.0,0.04052978]
[1732321277685,0.01744954,98635.0,98612.0,0.1284]
[1732321277927,0.06704954,98635.0,98613.0,0.10201427]
[1732321278995,0.06704954,98635.0,98614.0,0.15]
[1732321279222,0.06344953,98637.0,98615.0,0.10201427]
[1732321279671,0.07768062,98630.0,98616.0,0.15]
[1732321281670,0.07768062,98630.0,98611.0,0.0008603]
[1732321282100,0.0496,98629.0,98611.0,0.0008603]
[1732321282350,0.07768062,98630.0,98611.0,0.0008603]
[1732321282351,0.04628061,98630.0,98611.0,0.0008603]
[1732321282780,0.07768062,98630.0,98611.0,0.0008603]
[1732321283675,0.06344953,98637.0,98611.0,0.0008603]
[1732321285459,0.06344953,98637.0,98612.0,0.0491]
[1732321286319,0.06013014,98640.0,98612.0,0.0491]
[1732321286761,0.06013014,98640.0,98613.0,0.0765]
[1732321288504,0.06013014,98640.0,98615.0,0.0491]
[1732321288771,0.06013014,98640.0,98615.0,0.15111427]
[1732321290067,0.06185174,98640.0,98615.0,0.15111427]
[1732321290505,0.07768062,98640.0,98615.0,0.15111427]
[1732321292213,0.07768062,98630.0,98615.0,0.0491]
[1732321293520,0.15848062,98630.0,98615.0,0.0491]
[1732321294167,0.07768062,98630.0,98615.0,0.0491]
[1732321295297,0.07768062,98630.0,98611.0,0.0008603]
[1732321295929,0.07768062,98621.0,98611.0,0.0008603]
[1732321298737,0.07378061,98622.0,98611.0,0.0008603]
[1732321298983,0.07768062,98630.0,98611.0,0.0008603]
[1732321301313,0.46799999,98635.0,98612.0,0.23301427]
[1732321301562,0.46799999,98635.0,98613.0,0.0814]
[1732321301786,0.46799999,98635.0,98614.0,0.10201427]
[1732321302022,0.46799999,98635.0,98618.0,0.0496]
[1732321302279,0.46799999,98635.0,98621.0,0.0496]
[1732321302530,0.46799999,98635.0,98622.0,0.10201427]
[1732321302754,0.38699998,98635.0,98624.0,0.131]
[1732321302987,0.38699998,98635.0,98625.0,0.18341427]
[1732321303232,0.0008608,98640.0,98625.0,0.18341427]
[1732321303737,0.0008608,98640.0,98625.0,0.0814]
[1732321303978,0.07854142,98640.0,98619.0,0.0814]
[1732321305923,0.07854142,98640.0,98617.0,0.0496]
[1732321306598,0.07768062,98640.0,98617.0,0.0496]
[1732321308877,0.07768062,98630.0,98614.0,0.0814]
[1732321311841,0.07768062,98630.0,98610.0,0.02358083]
[1732321312490,0.0771,98629.0,98610.0,0.02358083]
[1732321312724,0.1262,98629.0,98610.0,0.02358083]
[1732321313920,0.1262,98629.0,98614.0,0.0017212]
[1732321314631,0.07768062,98624.0,98614.0,0.0017212]
[1732321316334,0.15536124,98624.0,98614.0,0.0017212]
[1732321316585,0.10201427,98623.0,98614.0,0.0017212]
[1732321317710,0.1268,98622.0,98614.0,0.0017212]
[1732321317940,0.10201427,98621.0,98614.0,0.0017212]
[1732321318680,0.1268,98622.0,98614.0,0.0017212]
[1732321322740,0.04579999,98622.0,98614.0,0.0017212]
[1732321324130,0.04579999,98622.0,98565.0,0.00172]
[1732321324367,0.07768062,98610.0,98574.0,0.10201427]
[1732321325041,0.0452,98609.0,98574.0,0.10201427]
[1732321326680,0.00059999,98622.0,98576.0,0.0484]
[1732321326906,0.07768062,98610.0,98577.0,0.10201427]
[1732321327212,0.07768062,98610.0,98579.0,0.23]
[1732321327533,0.07768062,98610.0,98580.0,0.10201427]
[1732321327763,0.07768062,98600.0,98581.0,0.15]
[1732321327979,0.0816,98609.0,98582.0,0.10201427]
[1732321328724,0.07768062,98600.0,98582.0,0.10201427]
[1732321328998,0.0816,98609.0,98582.0,0.10201427]
[1732321329452,0.07768062,98600.0,98582.0,0.10201427]
[1732321329673,0.0452,98605.0,98582.0,0.10201427]
[1732321330130,0.07768062,98600.0,98582.0,0.10201427]
[1732321330627,0.04188061,98605.0,98582.0,0.10201427]
[1732321330859,0.07768062,98600.0,98578.0,0.02158579]
[1732321331120,0.0816,98599.0,98579.0,0.10201427]
[1732321331829,0.0816,98599.0,98578.0,0.02158579]
[1732321332999,0.0845772,98599.0,98560.0,0.07768062]
[1732321333234,0.0452,98598.0,98566.0,0.10201427]
[1732321333739,0.0452,98598.0,98567.0,0.08]
[1732321333979,0.0452,98598.0,98568.0,0.10201427]
[1732321334676,0.04579999,98599.0,98568.0,0.10201427]
[1732321334937,0.04766399,98599.0,98568.0,0.10201427]
[1732321335607,0.07768062,98590.0,98568.0,0.10201427]
[1732321336769,0.04766399,98599.0,98567.0,0.08]
[1732321336770,0.001864,98593.0,98569.0,0.01047071]
[1732321337485,0.001864,98593.0,98570.0,0.0484]
[1732321337728,0.001864,98593.0,98570.0,0.05876542]
[1732321338616,0.04579999,98599.0,98570.0,0.05876542]
[1732321339786,0.0017224,98593.0,98570.0,0.05876542]
[1732321340505,0.0017224,98593.0,98581.0,0.1288]
[1732321340749,0.0017224,98593.0,98582.0,0.10201427]
[1732321340966,0.0017224,98593.0,98582.0,0.10302855]
[1732321341188,0.0017224,98593.0,98582.0,0.01688999]
[1732321341433,0.0017224,98593.0,98583.0,0.00101427]
[1732321341663,0.0017224,98593.0,98584.0,0.10201427]
[1732321341881,0.0017224,98593.0,98585.0,0.00101414]
[1732321342162,0.0017224,98593.0,98586.0,0.10302841]
[1732321342888,0.0017214,98622.0,98590.0,0.07768062]
[1732321343138,0.0017214,98622.0,98591.0,0.10201427]
[1732321343385,0.0017214,98622.0,98591.0,0.10302841]
[1732321344307,0.0017214,98622.0,98592.0,0.0484]
[1732321344546,0.0017214,98622.0,98593.0,0.10201427]
[1732321345243,0.0017214,98622.0,98594.0,0.00101414]
[1732321345500,0.0017214,98622.0,98594.0,0.10302841]
[1732321345743,0.0824,98609.0,98584.0,0.0804]
[1732321346007,0.0824,98609.0,98585.0,0.10201427]
[1732321346246,0.0824,98609.0,98584.0,0.0804]
[1732321346812,0.00139999,98609.0,98584.0,0.0804]
[1732321347052,0.07768062,98600.0,98584.0,0.0804]
[1732321347974,0.17969489,98600.0,98577.0,0.0804]
[1732321348203,0.10201427,98600.0,98577.0,0.0804]
[1732321348663,0.17969489,98600.0,98577.0,0.0804]
[1732321352203,0.0008612,98600.0,98586.0,0.10201427]
[1732321354642,0.0008612,98600.0,98582.0,0.02241856]
[1732321354887,0.0803,98605.0,98574.0,0.0478]
[1732321355148,0.0803,98605.0,98575.0,0.10201427]
[1732321355396,0.18231427,98605.0,98574.0,0.14981427]
[1732321355630,0.18231427,98605.0,98575.0,0.00101434]
[1732321357759,0.18231427,98605.0,98576.0,0.0762]
[1732321357979,0.18231427,98605.0,98576.0,0.07721434]
[1732321358676,0.10131426,98605.0,98576.0,0.0762]
[1732321359122,0.0803,98604.0,98574.0,0.14895336]
[1732321359604,0.0491,98603.0,98574.0,0.14895336]
[1732321360048,0.0491,98603.0,98574.0,0.10201427]
[1732321360274,0.10201427,98602.0,98560.0,0.07768062]
[1732321360527,0.10201427,98602.0,98568.0,0.10201427]
[1732321361269,0.07768062,98600.0,98568.0,0.10201427]
[1732321361517,0.10201427,98599.0,98568.0,0.10201427]
[1732321362006,0.10201427,98599.0,98569.0,0.0762]
[1732321362248,0.10201427,98599.0,98569.0,0.17821427]
[1732321362711,0.0491,98601.0,98570.0,0.10201427]
[1732321364096,0.07768062,98600.0,98570.0,0.10201427]
[1732321364312,0.0491,98599.0,98570.0,0.10201427]
[1732321365213,0.0803,98598.0,98570.0,0.10201427]
[1732321366888,0.04839999,98599.0,98570.0,0.10201427]
[1732321367853,0.10201427,98599.0,98571.0,0.0762]
[1732321368310,0.07768062,98590.0,98571.0,0.0762]
[1732321368568,0.07768062,98581.0,98571.0,0.0762]
[1732321368793,0.07768062,98581.0,98535.0,0.1008604]
[1732321368794,0.07768062,98581.0,98565.0,0.0762]
[1732321369040,0.10201427,98589.0,98565.0,0.0762]
[1732321369259,0.07768062,98580.0,98535.0,0.0008604]
[1732321369495,0.07768062,98580.0,98558.0,0.0762]
[1732321370000,0.0491,98579.0,98558.0,0.0762]
[1732321370888,0.15041426,98580.0,98558.0,0.0762]
[1732321371834,0.10201427,98579.0,98558.0,0.0762]
[1732321372997,0.05011463,98578.0,98530.0,0.01503998]
[1732321373220,0.05011463,98578.0,98548.0,0.10201427]
[1732321374828,0.04839999,98580.0,98548.0,0.10201427]
[1732321375049,0.04839999,98580.0,98567.0,0.0008609]
[1732321376838,0.16664842,98580.0,98567.0,0.0008609]
[1732321377765,0.4,98574.0,98567.0,0.0008609]
[1732321377977,0.15061427,98573.0,98567.0,0.0008609]
[1732321379079,0.06961426,98573.0,98567.0,0.0008609]
[1732321380870,0.11126536,98573.0,98567.0,0.0008609]
[1732321381303,0.38368059,98572.0,98567.0,0.0008609]
[1732321381536,0.10201427,98571.0,98567.0,0.0008609]
[1732321382039,0.38368059,98572.0,98567.0,0.0008609]
[1732321382259,0.38368059,98589.0,98568.0,0.0453]
[1732321382487,0.38368059,98589.0,98569.0,0.0819]
[1732321382964,0.38368059,98589.0,98570.0,0.10201427]
[1732321384787,0.30268058,98589.0,98570.0,0.10201427]
[1732321386848,0.30268058,98589.0,98537.0,0.1]
[1732321387076,0.10201427,98588.0,98567.0,0.0008605]
[1732321387312,0.11824843,98580.0,98567.0,0.0008605]
[1732321387541,0.53129485,98579.0,98567.0,0.0008605]
[1732321387996,0.50129485,98579.0,98567.0,0.0008605]
[1732321388489,0.30268058,98578.0,98567.0,0.0008605]
[1732321388704,0.10201427,98577.0,98567.0,0.0008605]
[1732321389160,0.02101426,98577.0,98567.0,0.0008605]
[1732321391394,0.00202728,98563.0,98508.0,0.09797272]
[1732321391608,0.00202728,98563.0,98517.0,0.10201427]
[1732321392152,0.11824843,98560.0,98518.0,0.15]
[1732321392373,0.00202728,98563.0,98519.0,0.10201427]
[1732321392594,0.00202728,98559.0,98520.0,0.15]
[1732321392808,0.00202728,98559.0,98521.0,0.10201427]
[1732321393024,0.11824843,98570.0,98522.0,0.15]
[1732321393268,0.0774,98569.0,98523.0,0.10201427]
[1732321393704,0.0774,98569.0,98524.0,0.15]
[1732321393930,0.0774,98569.0,98525.0,0.10201427]
[1732321394158,0.0774,98569.0,98526.0,0.00101476]
[1732321394393,0.0774,98569.0,98527.0,0.10201427]
[1732321394626,0.0774,98569.0,98528.0,0.12711476]
[1732321394867,0.0774,98569.0,98529.0,0.10201427]
[1732321395324,0.0774,98569.0,98530.0,0.00101476]
[1732321395561,0.0774,98569.0,98531.0,0.10201427]
[1732321396053,0.0774,98569.0,98532.0,0.15]
[1732321396259,0.0774,98569.0,98533.0,0.10201427]
[1732321396707,0.11824843,98560.0,98533.0,0.10201427]
[1732321396961,0.03724842,98560.0,98533.0,0.10201427]
[1732321397204,0.03724842,98560.0,98534.0,0.15]
[1732321397444,0.03724842,98560.0,98536.0,0.15]
[1732321397685,0.11824843,98560.0,98537.0,0.15]
[1732321399527,0.0474,98561.0,98537.0,0.15]
[1732321400888,0.04379999,98569.0,98537.0,0.15]
[1732321401151,0.11824843,98560.0,98537.0,0.15]
[1732321402966,0.40469485,98568.0,98537.0,0.15]
[1732321403199,0.11824843,98560.0,98537.0,0.15]
[1732321403478,0.40469485,98568.0,98537.0,0.15]
[1732321403697,0.30268058,98568.0,98538.0,0.22811427]
[1732321404916,0.30268058,98568.0,98539.0,0.10201427]
[1732321407894,0.30268058,98568.0,98540.0,0.00101475]
[1732321408124,0.30268058,98568.0,98541.0,0.21201427]
[1732321408384,0.0020113,98572.0,98542.0,0.00101467]
[1732321408615,0.0020113,98572.0,98543.0,0.2130289]
[1732321408839,0.0020113,98572.0,98543.0,0.1030289]
[1732321409059,0.0020113,98572.0,98545.0,0.15]
[1732321409291,0.04492918,98579.0,98546.0,0.1030289]
[1732321409725,0.04492918,98579.0,98547.0,0.15]
[1732321409935,0.04492918,98579.0,98548.0,0.10201427]